fUST/lending_fUST_20260429
["ID","MTS","AMOUNT","RATE_DAILY","PERIOD"]
[421320720,1777431048439,-207.70563739,0.0002,2]
[421320721,1777431048450,-200.0,0.0002,7]
[421320722,1777431048461,-156.45537848,0.0002,2]
[421320723,1777431048471,-28391.94165368,0.0002,7]
[421320724,1777431049101,-671.61,0.00018877,2]
[421320725,1777431049113,-671.61,0.00018877,2]
[421320726,1777431049124,-671.61,0.00018877,2]
[421320727,1777431049134,-171.06669367,0.00018877,2]
[421320728,1777431049148,-500.54330633,0.00018877,2]
[421320729,1777431049159,-159.23169277,0.00018877,2]
[421320830,1777431647437,1354.13247733,7.6e-05,2]
[421320867,1777431946110,-575.83383532,0.00011028,2]
[421320868,1777431946134,-575.0,0.00011028,2]
[421320869,1777431946157,-2905.71464063,0.00011139,2]
[421320870,1777431996101,-575.83383532,0.00011139,2]
[421320871,1777432145075,-3055.5160238,0.00011028,2]
[421320872,1777432145098,-208.66915715,0.0001114,2]
[421320873,1777432145120,-1200.0,0.00011366,2]
[421320874,1777432145141,-1633.88989845,0.000116,2]
[421320875,1777432145162,-300.0,0.00011698,2]
[421320876,1777432145182,-300.0,0.00011699,2]
[421320877,1777432145203,-2000.0,0.000117,2]
[421320878,1777432145223,-300.0,0.00011799,2]
[421320879,1777432145244,-2000.0,0.000118,2]
[421320880,1777432145265,-2000.0,0.000119,2]
[421320881,1777432145286,-2000.0,0.00012,2]
[421320882,1777432145307,-763.12400401,0.00012,2]
[421320883,1777432145330,-1694.66675659,0.00012,2]
[421320886,1777432151113,-696.08783647,0.00012,2]
[421320887,1777432151138,-1402.37778452,0.00012,2]
[421320888,1777432151159,-2744.26503625,0.00012,2]
[421320889,1777432151182,-201.32391286,0.000121,2]
[421320890,1777432151203,-455.47126536,0.000121,2]
[421320891,1777432151226,-151.82375511,0.000121,2]
[421320892,1777432151248,-254.37466796,0.000121,2]
[421320893,1777432151274,-175.29722306,0.000121,2]
[421320894,1777432151300,-300.0,0.00012137,2]
[421320895,1777432151327,-300.0,0.00012137,2]
[421320896,1777432151353,-300.0,0.00012137,2]
[421320897,1777432151376,-300.0,0.00012137,2]
[421320898,1777432151401,-300.0,0.00012137,2]
[421320899,1777432151424,-300.0,0.00012137,2]
[421320900,1777432151448,-300.0,0.00012137,2]
[421320901,1777432151473,-300.0,0.00012137,2]
[421320902,1777432151496,-300.0,0.00012137,2]
[421320903,1777432151522,-300.0,0.00012137,2]
[421320904,1777432151548,-300.0,0.00012137,2]
[421320905,1777432151573,-300.0,0.00012137,2]
[421320906,1777432151599,-300.0,0.00012137,2]
[421320907,1777432151625,-300.0,0.00012137,2]
[421320908,1777432151650,-300.0,0.00012137,2]
[421320909,1777432151673,-2390.75459306,0.00012138,2]
[421320910,1777432151696,-1402.37778452,0.00012138,2]
[421320911,1777432151717,-763.12400401,0.00012233,2]
[421320912,1777432151738,-2390.75459306,0.00012276,2]
[421320913,1777432151760,-1402.37778452,0.00012276,2]
[421320914,1777432151782,-425.65187995,0.00012378,2]
[421320915,1777432151807,-600.0,0.00012379,2]
[421320916,1777432151830,-6417.0296319,0.00012379,2]
[421320917,1777432151854,-2390.75459306,0.00012414,2]
[421320918,1777432151880,-1402.37778452,0.00012414,2]
[421320919,1777432151903,-763.12400401,0.00012466,2]
[421320920,1777432151925,-183.0,0.00012503,2]
[421320921,1777432151947,-1402.37778452,0.00012552,2]
[421320922,1777432151971,-2390.75459306,0.00012552,2]
[421320923,1777432151991,-201.32391286,0.00012575,2]
[421320924,1777432152012,-455.47126536,0.00012575,2]
[421320925,1777432152037,-1402.37778452,0.00012689,7]
[421320926,1777432152060,-2390.75459306,0.00012689,7]
[421320927,1777432152081,-763.12400401,0.00012699,7]
[421320928,1777432152104,-1174.07765423,0.00012827,7]
[421320929,1777432161113,-228.30013029,0.00012827,7]
[421320930,1777432161136,-2390.75459306,0.00012827,7]
[421320931,1777432161161,-231.79065071,0.000129,2]
[421320932,1777432161184,-763.12400401,0.00012932,7]
[421320933,1777432161205,-420.0,0.00012955,2]
[421320934,1777432161228,-1402.37778452,0.00012965,7]
[421320935,1777432161253,-2390.75459306,0.00012965,7]
[421320936,1777432161275,-455.47126536,0.00013051,7]
[421320937,1777432161298,-201.32391286,0.00013051,7]
[421320938,1777432161323,-175.29722306,0.00013051,7]
[421320939,1777432161349,-1402.37778452,0.00013103,7]
[421320940,1777432161371,-71.49016796,0.00013103,7]
[421320941,1777432167082,-2319.2644251,0.00013103,7]
[421320942,1777432167104,-246.22960544,0.0001314,2]
[421320943,1777432167125,-763.12400401,0.00013165,7]
[421320944,1777432167147,-1402.37778452,0.00013241,7]
[421320945,1777432167168,-2390.75459306,0.00013241,7]
[421320946,1777432167190,-749.08057287,0.00013379,7]
[421320977,1777432232501,-653.29721165,0.00013379,7]
[421320978,1777432232511,-86.30528907,0.00013379,7]
[421321095,1777432238302,-2304.44930399,0.00013379,7]
[421321097,1777432238313,-763.12400401,0.00013398,7]
[421321098,1777432238323,-231.79065069,0.0001343,2]
[421321099,1777432238334,-300.0,0.00013516,2]
[421321100,1777432238344,-2390.75459306,0.00013517,7]
[421321101,1777432238354,-1402.37778452,0.00013517,7]
[421321102,1777432238365,-455.47126536,0.00013526,7]
[421321103,1777432238376,-201.32391286,0.00013526,7]
[421321104,1777432238386,-763.12400401,0.00013631,7]
[421321105,1777432238397,-2390.75459306,0.00013655,7]
[421321106,1777432238406,-1402.37778452,0.00013655,7]
[421321107,1777432238416,-500.0,0.00013698,2]
[421321109,1777432238426,-500.0,0.00013698,2]
[421321111,1777432238435,-500.96727243,0.00013698,2]
[421321112,1777432238446,-171.35,0.00013699,2]
[421321113,1777432238455,-1000.0,0.00013699,2]
[421321114,1777432238465,-2390.75459306,0.00013792,7]
[421321115,1777432238475,-1402.37778452,0.00013792,7]
[421321116,1777432238485,-8906.81,0.00013853,2]
[421321117,1777432238494,-10000.0,0.00013853,2]
[421321118,1777432238504,-763.12400401,0.00013864,7]
[421321119,1777432238513,-2390.75459306,0.0001393,7]
[421321120,1777432238523,-1402.37778452,0.0001393,7]
[421321121,1777432238532,-10000.0,0.00013953,2]
[421321122,1777432238541,-201.32391286,0.00014002,7]
[421321123,1777432238551,-455.47126536,0.00014002,7]
[421321124,1777432238560,-175.29722306,0.00014002,7]
[421321125,1777432238569,-2390.75459306,0.00014068,14]
[421321126,1777432238579,-1402.37778452,0.00014068,14]
[421321127,1777432238589,-763.12400401,0.00014097,14]
[421321128,1777432238599,-600.0,0.00014129,2]
[421321129,1777432238609,-2390.75459306,0.00014206,14]
[421321130,1777432238620,-1402.37778452,0.00014206,14]
[421321131,1777432238630,-763.12400401,0.0001433,14]
[421321132,1777432238642,-2390.75459306,0.00014344,14]
[421321133,1777432238651,-1402.37778452,0.00014344,14]
[421321134,1777432238661,-201.32391286,0.00014477,14]
[421321135,1777432238671,-455.47126536,0.00014477,14]
[421321136,1777432238681,-2390.75459306,0.00014482,14]
[421321137,1777432238691,-1402.37778452,0.00014482,14]
[421321138,1777432238700,-763.12400401,0.00014563,14]
[421321139,1777432238712,-2390.75459306,0.0001462,14]
[421321140,1777432238723,-1402.37778452,0.0001462,14]
[421321141,1777432238732,-2390.75459306,0.00014758,14]
[421321142,1777432238742,-1402.37778452,0.00014758,14]
[421321143,1777432238751,-763.12400401,0.00014796,14]
[421321144,1777432238761,-231.79065069,0.00014823,2]
[421321145,1777432238770,-2390.75459306,0.00014896,14]
[421321146,1777432238780,-1402.37778452,0.00014896,14]
[421321147,1777432238789,-201.32391286,0.00014953,14]
[421321148,1777432238798,-455.47126536,0.00014953,14]
[421321149,1777432238808,-175.29722306,0.00014953,14]
[421321150,1777432239020,-763.12400401,0.00015029,14]
[421321151,1777432239030,-2390.75459306,0.00015033,14]
[421321152,1777432239040,-1402.37778452,0.00015033,14]
[421321153,1777432239049,-283.79005373,0.0001514,2]
[421321154,1777432239059,-2390.75459306,0.00015171,14]
[421321155,1777432239068,-1402.37778452,0.00015171,14]
[421321156,1777432239077,-763.12400401,0.00015262,14]
[421321157,1777432239088,-2390.75459306,0.00015309,14]
[421321158,1777432239099,-1402.37778452,0.00015309,14]
[421321159,1777432239108,-220.07667889,0.00015396,2]
[421321160,1777432239118,-4985.65,0.00015397,2]
[421321161,1777432239128,-201.32391286,0.00015428,14]
[421321162,1777432239139,-455.47126536,0.00015428,14]
[421321163,1777432239150,-254.37466796,0.00015428,14]
[421321164,1777432239161,-151.82375511,0.00015428,14]
[421321165,1777432239171,-2390.75459306,0.00015447,30]
[421321166,1777432239182,-1402.37778452,0.00015447,30]
[421321167,1777432239194,-763.12400401,0.00015495,30]
[421321168,1777432239204,-720.0,0.00015542,2]
[421321169,1777432239213,-2390.75459306,0.00015585,30]
[421321170,1777432239224,-1402.37778452,0.00015585,30]
[421321171,1777432239235,-2390.75459306,0.00015723,30]
[421321172,1777432239245,-1402.37778452,0.00015723,30]
[421321173,1777432239255,-763.12400401,0.00015728,30]
[421321174,1777432239264,-2390.75459306,0.00015861,30]
[421321175,1777432239274,-1402.37778452,0.00015861,30]
[421321176,1777432239284,-201.32391286,0.00015904,30]
[421321177,1777432239293,-455.47126536,0.00015904,30]
[421321178,1777432239302,-175.29722306,0.00015904,30]
[421321179,1777432239313,-160.0,0.00015937,2]
[421321180,1777432239323,-160.0,0.00015937,2]
[421321181,1777432239333,-763.12400401,0.00015961,30]
[421321182,1777432239342,-2390.75459306,0.00015999,30]
[421321183,1777432239352,-1402.37778452,0.00015999,30]
[421321184,1777432239362,-389.258869,0.00016084,2]
[421321185,1777432239371,-2390.75459306,0.00016137,30]
[421321186,1777432239380,-1402.37778452,0.00016137,30]
[421321187,1777432239391,-165.095309,0.00016146,2]
[421321188,1777432239401,-763.12400401,0.00016194,30]
[421321189,1777432239410,-231.79065069,0.00016215,2]
[421321190,1777432239419,-2390.75459306,0.00016274,30]
[421321191,1777432239429,-1402.37778452,0.00016274,30]
[421321192,1777432239439,-201.32391286,0.00016379,30]
[421321193,1777432239448,-455.47126536,0.00016379,30]
[421321194,1777432239458,-2390.75459306,0.00016412,30]
[421321195,1777432239467,-1402.37778452,0.00016412,30]
[421321196,1777432239477,-763.12400401,0.00016427,30]
[421321197,1777432239487,-2390.75459306,0.0001655,30]
[421321198,1777432239496,-1402.37778452,0.0001655,30]
[421321199,1777432239506,-763.12400401,0.0001666,30]
[421321200,1777432239515,-2390.75459306,0.00016688,30]
[421321201,1777432239525,-1402.37778452,0.00016688,30]
[421321202,1777432239535,-2390.75459306,0.00016826,60]
[421321203,1777432239544,-1402.37778452,0.00016826,60]
[421321204,1777432239554,-157.0,0.00016849,3]
[421321205,1777432239565,-455.47126536,0.00016854,60]
[421321206,1777432239575,-201.32391286,0.00016854,60]
[421321207,1777432239584,-175.29722306,0.00016854,60]
[421321208,1777432239593,-176.935849,0.00016888,2]
[421321209,1777432239603,-763.12400401,0.00016892,60]
[421321210,1777432239613,-2390.75459306,0.00016964,60]
[421321211,1777432239622,-1402.37778452,0.00016964,60]
[421321212,1777432239631,-864.0,0.00017096,2]
[421321213,1777432239640,-2390.75459306,0.00017102,60]
[421321214,1777432239650,-1402.37778452,0.00017102,60]
[421321215,1777432239660,-763.12400401,0.00017125,60]
[421321216,1777432239671,-321.35050202,0.0001714,2]
[421321217,1777432239680,-1402.37778452,0.0001724,60]
[421321218,1777432239689,-2390.75459306,0.0001724,60]
[421321219,1777432239699,-455.47126536,0.0001733,60]
[421321220,1777432239708,-201.32391286,0.0001733,60]
[421321221,1777432239718,-763.12400401,0.00017358,60]
[421321222,1777432239727,-1402.37778452,0.00017377,60]
[421321223,1777432239737,-2390.75459306,0.00017377,60]
[421321224,1777432239746,-1402.37778452,0.00017515,60]
[421321225,1777432239756,-2390.75459306,0.00017515,60]
[421321226,1777432239767,-763.12400401,0.00017591,60]
[421321227,1777432239777,-231.79065069,0.00017608,2]
[421321228,1777432239786,-1402.37778452,0.00017653,60]
[421321229,1777432239796,-2390.75459306,0.00017653,60]
[421321230,1777432239806,-1402.37778452,0.00017791,60]
[421321231,1777432239816,-2390.75459306,0.00017791,60]
[421321232,1777432239826,-455.47126536,0.00017805,60]
[421321233,1777432239837,-201.32391286,0.00017805,60]
[421321234,1777432239849,-175.29722306,0.00017805,60]
[421321235,1777432239859,-763.12400401,0.00017824,60]
[421321236,1777432239870,-600.0,0.00017858,2]
[421321237,1777432239880,-600.0,0.00017866,2]
[421321238,1777432239890,-1402.37778452,0.00017929,60]
[421321239,1777432239901,-2390.75459306,0.00017929,60]
[421321240,1777432239912,-763.12400401,0.00018057,60]
[421321241,1777432239922,-2390.75459306,0.00018067,60]
[421321242,1777432239932,-1402.37778452,0.00018067,60]
[421321244,1777432239942,-175.29722302,0.00018094,120]
[421321245,1777432239951,-646.0,0.00018185,2]
[421321246,1777432239961,-1409.0,0.00018185,2]
[421321247,1777432239970,-2211.0,0.00018185,2]
[421321248,1777432239980,-185.0,0.00018185,2]
[421321249,1777432239991,-2390.75459306,0.00018205,120]
[421321250,1777432240001,-1402.37778452,0.00018205,120]
[421321251,1777432240011,-151.0,0.00018205,2]
[421321252,1777432240021,-250.802637,0.00018205,2]
[421321253,1777432240031,-228.665913,0.00018205,2]
[421321255,1777432240041,-489.795287,0.00018205,2]
[421321256,1777432240050,-489.795287,0.00018205,2]
[421321257,1777432240061,-489.795287,0.00018205,2]
[421321258,1777432240071,-489.795287,0.00018205,2]
[421321259,1777432240080,-5521.942073,0.00018205,2]
[421321260,1777432240090,-5521.942073,0.00018205,2]
[421321261,1777432240100,-5521.942073,0.00018205,2]
[421321262,1777432240110,-5521.942073,0.00018205,2]
[421321263,1777432240121,-9918.957665,0.00018205,2]
[421321264,1777432240131,-9918.957665,0.00018205,2]
[421321265,1777432240142,-9918.957665,0.00018205,2]
[421321266,1777432240152,-9918.957665,0.00018205,2]
[421321267,1777432240161,-454.53565,0.00018205,2]
[421321268,1777432240172,-454.53565,0.00018205,2]
[421321269,1777432240183,-454.53565,0.00018205,2]
[421321270,1777432240195,-454.53565,0.00018205,2]
[421321271,1777432240204,-1385.53926,0.00018205,2]
[421321272,1777432240214,-1385.53926,0.00018205,2]
[421321273,1777432240224,-1385.53926,0.00018205,2]
[421321274,1777432240233,-4886.903776,0.00018205,2]
[421321275,1777432240242,-1385.53926,0.00018205,2]
[421321276,1777432240252,-4886.903776,0.00018205,2]
[421321277,1777432240261,-4886.903776,0.00018205,2]
[421321278,1777432240271,-4886.903776,0.00018205,2]
[421321279,1777432240281,-219.469755,0.00018205,2]
[421321280,1777432240290,-219.469755,0.00018205,2]
[421321281,1777432240300,-219.469755,0.00018205,2]
[421321282,1777432240310,-219.469755,0.00018205,2]
[421321283,1777432240320,-151.0,0.00018205,2]
[421321284,1777432240329,-151.0,0.00018205,2]
[421321285,1777432240339,-151.0,0.00018205,2]
[421321286,1777432240348,-151.0,0.00018205,2]
[421321287,1777432240357,-475.878588,0.00018205,2]
[421321288,1777432240367,-475.878588,0.00018205,2]
[421321289,1777432240376,-233.504687,0.00018205,2]
[421321290,1777432240385,-475.878588,0.00018205,2]
[421321291,1777432240395,-475.878588,0.00018205,2]
[421321292,1777432240404,-233.504687,0.00018205,2]
[421321293,1777432240414,-475.878588,0.00018205,2]
[421321294,1777432240424,-475.878588,0.00018205,2]
[421321295,1777432240433,-233.504687,0.00018205,2]
[421321296,1777432240443,-475.878588,0.00018205,2]
[421321297,1777432240453,-475.878588,0.00018205,2]
[421321298,1777432240464,-233.504687,0.00018205,2]
[421321299,1777432240475,-151.0,0.00018205,2]
[421321300,1777432240485,-151.0,0.00018205,2]
[421321301,1777432240495,-151.0,0.00018205,2]
[421321302,1777432240505,-151.0,0.00018205,2]
[421321303,1777432240515,-151.0,0.00018205,2]
[421321304,1777432240525,-151.0,0.00018205,2]
[421321305,1777432240535,-151.0,0.00018205,2]
[421321306,1777432240545,-151.0,0.00018205,2]
[421321307,1777432240554,-804.177038,0.00018205,2]
[421321308,1777432240564,-804.177038,0.00018205,2]
[421321309,1777432240574,-205.921964,0.00018205,2]
[421321310,1777432240583,-804.177038,0.00018205,2]
[421321311,1777432240593,-804.177038,0.00018205,2]
[421321312,1777432240602,-804.177038,0.00018205,2]
[421321313,1777432240611,-804.177038,0.00018205,2]
[421321314,1777432240621,-804.177038,0.00018205,2]
[421321315,1777432240631,-804.177038,0.00018205,2]
[421321316,1777432240640,-151.0,0.00018205,2]
[421321317,1777432240650,-151.0,0.00018205,2]
[421321318,1777432240659,-151.0,0.00018205,2]
[421321319,1777432240669,-4184.541836,0.00018205,2]
[421321320,1777432240679,-7756.453893,0.00018205,2]
[421321321,1777432240689,-813.43133,0.00018205,2]
[421321322,1777432240699,-7756.453893,0.00018205,2]
[421321323,1777432240709,-813.43133,0.00018205,2]
[421321324,1777432240718,-151.0,0.00018205,2]
[421321325,1777432240728,-7756.453893,0.00018205,2]
[421321326,1777432240737,-813.43133,0.00018205,2]
[421321327,1777432240747,-187.480112,0.00018205,2]
[421321328,1777432240756,-7756.453893,0.00018205,2]
[421321329,1777432240766,-813.43133,0.00018205,2]
[421321330,1777432240776,-171.817311,0.00018205,2]
[421321331,1777432240786,-187.480112,0.00018205,2]
[421321332,1777432240798,-171.817311,0.00018205,2]
[421321333,1777432240808,-162.380719,0.00018212,2]
[421321334,1777432240818,-537.6845,0.00018212,2]
[421321335,1777432240828,-537.6845,0.00018212,2]
[421321336,1777432240838,-2150.738,0.00018212,2]
[421321337,1777432240848,-2995.045443,0.00018219,2]
[421321338,1777432240858,-6733.70611558,0.00018219,2]
[421321339,1777432240869,-557.5788265,0.00018267,2]
[421321340,1777432240879,-455.47126536,0.00018281,120]
[421321341,1777432240890,-201.32391286,0.00018281,120]
[421321342,1777432240900,-763.12400401,0.0001829,120]
[421321343,1777432240910,-219.469755,0.00018322,2]
[421321344,1777432240920,-219.469755,0.00018322,2]
[421321345,1777432240930,-219.469755,0.00018322,2]
[421321346,1777432240940,-219.469755,0.00018322,2]
[421321347,1777432240950,-151.0,0.00018322,2]
[421321348,1777432240960,-151.0,0.00018322,2]
[421321349,1777432240970,-151.0,0.00018322,2]
[421321350,1777432240980,-301.811067,0.00018322,2]
[421321351,1777432240991,-233.504687,0.00018322,2]
[421321352,1777432241000,-233.504687,0.00018322,2]
[421321353,1777432241010,-233.504687,0.00018322,2]
[421321354,1777432241020,-233.504687,0.00018322,2]
[421321355,1777432241030,-578.20924308,0.00018322,2]
[421321356,1777432241040,-2390.75459306,0.00018343,120]
[421321357,1777432241051,-1402.37778452,0.00018343,120]
[421321358,1777432241061,-1328.0,0.0001836,120]
[421321359,1777432241071,-599.60298507,0.00018377,2]
[421321360,1777432241081,-1122.30101926,0.00018378,18]
[421321361,1777432241091,-600.0,0.00018426,2]
[421321362,1777432241101,-621.78829552,0.00018432,2]
[421321363,1777432241277,-2390.75459306,0.00018481,120]
[421321364,1777432241312,-1402.37778452,0.00018481,120]
[421321365,1777432241331,-151.0,0.00018481,2]
[421321366,1777432241342,-151.0,0.00018481,2]
[421321367,1777432241356,-151.0,0.00018481,2]
[421321368,1777432241366,-644.79446246,0.00018487,2]
[421321369,1777432241376,-763.12400401,0.00018523,120]
[421321370,1777432241386,-1122.30101926,0.00018538,19]
[421321371,1777432241396,-448.225,0.00018539,2]
[421321372,1777432241406,-668.65185757,0.00018542,2]
[421321373,1777432241415,-693.3919763,0.00018597,2]
[421321374,1777432241425,-600.0,0.00018603,2]
[421321375,1777432241435,-608.23456878,0.00018603,2]
[421321376,1777432241445,-2390.75459306,0.00018618,120]
[421321377,1777432241455,-1402.37778452,0.00018618,120]
[421321378,1777432241465,-719.04747942,0.00018652,2]
[421321379,1777432241474,-1122.30101926,0.00018697,21]
[421321380,1777432241484,-745.65223616,0.00018707,2]
[421321381,1777432241493,-201.32391286,0.00018756,120]
[421321382,1777432241502,-2390.75459306,0.00018756,120]
[421321383,1777432241512,-151.82375511,0.00018756,120]
[421321384,1777432241523,-254.37466796,0.00018756,120]
[421321385,1777432241532,-557.5788265,0.0001876,2]
[421321386,1777432241543,-2230.315306,0.0001876,2]
[421321387,1777432241552,-238.58537148,0.00018762,2]
[421321388,1777432241562,-200.0,0.0001877,7]
[421321389,1777432241572,-500.50128527,0.00018773,2]
[421321390,1777432241583,-500.0,0.00018773,2]
[421321391,1777432241594,-501.56528971,0.00018773,2]
[421321392,1777432241603,-500.0,0.00018773,2]
[421321393,1777432241613,-500.0,0.00018773,2]
[421321394,1777432241624,-500.0,0.00018773,2]
[421321395,1777432241633,-500.0,0.00018773,2]
[421321396,1777432241644,-500.0,0.00018773,2]
[421321397,1777432241653,-500.0,0.00018773,2]
[421321398,1777432241665,-500.0,0.00018773,2]
[421321399,1777432241674,-500.0,0.00018773,2]
[421321400,1777432241684,-7756.453893,0.00018773,2]
[421321401,1777432241694,-813.43133,0.00018773,2]
[421321402,1777432241705,-7756.453893,0.00018773,2]
[421321403,1777432241715,-813.43133,0.00018773,2]
[421321404,1777432241725,-151.0,0.00018773,2]
[421321405,1777432241736,-7756.453893,0.00018773,2]
[421321406,1777432241747,-813.43133,0.00018773,2]
[421321407,1777432241756,-187.480112,0.00018773,2]
[421321408,1777432241766,-7756.453893,0.00018773,2]
[421321409,1777432241776,-813.43133,0.00018773,2]
[421321410,1777432241786,-171.817311,0.00018773,2]
[421321411,1777432241796,-187.480112,0.00018773,2]
[421321412,1777432241807,-500.0,0.00018777,2]
[421321413,1777432241817,-500.0,0.00018777,2]
[421321414,1777432241826,-500.0,0.00018777,2]
[421321415,1777432241838,-500.0,0.00018777,2]
[421321416,1777432241849,-500.0,0.00018777,2]
[421321417,1777432241860,-500.0,0.00018777,2]
[421321418,1777432241871,-500.0,0.00018777,2]
[421321419,1777432241881,-500.0,0.00018777,2]
[421321420,1777432241892,-500.0,0.00018777,2]
[421321421,1777432241901,-500.0,0.00018777,2]
[421321422,1777432241911,-500.0,0.00018777,2]
[421321423,1777432241921,-500.0,0.00018777,2]
[421321424,1777432241931,-500.0,0.00018777,2]
[421321425,1777432241940,-500.0,0.00018777,2]
[421321426,1777432241951,-500.0,0.00018777,2]
[421321427,1777432241961,-500.0,0.00018777,2]
[421321428,1777432241970,-571.76038702,0.00018777,2]
[421321429,1777432241981,-893.0,0.00018793,2]
[421321430,1777432241992,-893.0,0.00018793,2]
[421321431,1777432242002,-893.0,0.00018793,2]
[421321432,1777432242012,-893.0,0.00018793,2]
[421321433,1777432242022,-893.0,0.00018793,2]
[421321434,1777432242033,-893.0,0.00018793,2]
[421321435,1777432242043,-893.0,0.00018793,2]
[421321436,1777432242054,-893.0,0.00018793,2]
[421321437,1777432242064,-893.0,0.00018793,2]
[421321438,1777432242074,-893.0,0.00018793,2]
[421321439,1777432242084,-893.0,0.00018793,2]
[421321440,1777432242094,-893.0,0.00018793,2]
[421321441,1777432242103,-893.0,0.00018793,2]
[421321442,1777432242113,-893.0,0.00018793,2]
[421321443,1777432242123,-893.0,0.00018793,2]
[421321444,1777432242132,-893.0,0.00018793,2]
[421321445,1777432242142,-893.0,0.00018793,2]
[421321446,1777432242152,-893.0,0.00018793,2]
[421321447,1777432242163,-893.0,0.00018793,2]
[421321448,1777432242173,-893.0,0.00018793,2]
[421321449,1777432242183,-893.0,0.00018793,2]
[421321450,1777432242194,-893.0,0.00018793,2]
[421321451,1777432242204,-500.0,0.00018793,2]
[421321452,1777432242214,-500.0,0.00018793,2]
[421321453,1777432242223,-500.0,0.00018793,2]
[421321454,1777432242233,-500.0,0.00018793,2]
[421321455,1777432242243,-500.0,0.00018793,2]
[421321456,1777432242252,-500.0,0.00018793,2]
[421321457,1777432242263,-500.0,0.00018793,2]
[421321458,1777432242273,-893.0,0.00018793,2]
[421321459,1777432242301,-500.0,0.00018793,2]
[421321460,1777432242323,-500.0,0.00018793,2]
[421321461,1777432242349,-500.0,0.00018793,2]
[421321462,1777432242372,-500.0,0.00018793,2]
[421321463,1777432242394,-500.0,0.00018793,2]
[421321464,1777432242416,-500.0,0.00018793,2]
[421321465,1777432242433,-500.0,0.00018793,2]
[421321466,1777432242455,-500.0,0.00018793,2]
[421321467,1777432242477,-500.0,0.00018793,2]
[421321468,1777432242500,-500.0,0.00018793,2]
[421321469,1777432242520,-221.22928412,0.00018793,2]
[421321470,1777432242539,-915.43572452,0.00018793,2]
[421321472,1777432242557,-9918.957665,0.00018793,2]
[421321473,1777432242578,-9918.957665,0.00018793,2]
[421321474,1777432242598,-9918.957665,0.00018793,2]
[421321475,1777432242613,-9918.957665,0.00018793,2]
[421321476,1777432242631,-454.53565,0.00018793,2]
[421321477,1777432242649,-454.53565,0.00018793,2]
[421321478,1777432242666,-454.53565,0.00018793,2]
[421321479,1777432242683,-454.53565,0.00018793,2]
[421321480,1777432242706,-1385.53926,0.00018793,2]
[421321481,1777432242724,-1385.53926,0.00018793,2]
[421321482,1777432242742,-1385.53926,0.00018793,2]
[421321483,1777432242760,-4886.903776,0.00018793,2]
[421321484,1777432242780,-1385.53926,0.00018793,2]
[421321485,1777432242797,-4886.903776,0.00018793,2]
[421321486,1777432242816,-4886.903776,0.00018793,2]
[421321487,1777432242832,-4886.903776,0.00018793,2]
[421321488,1777432242849,-219.469755,0.00018793,2]
[421321489,1777432242866,-219.469755,0.00018793,2]
[421321490,1777432242883,-219.469755,0.00018793,2]
[421321491,1777432242900,-219.469755,0.00018793,2]
[421321492,1777432242917,-151.0,0.00018793,2]
[421321493,1777432242935,-151.0,0.00018793,2]
[421321494,1777432242951,-151.0,0.00018793,2]
[421321495,1777432242968,-475.878588,0.00018793,2]
[421321496,1777432242985,-233.504687,0.00018793,2]
[421321497,1777432243002,-475.878588,0.00018793,2]
[421321498,1777432243019,-233.504687,0.00018793,2]
[421321499,1777432243037,-475.878588,0.00018793,2]
[421321500,1777432243053,-233.504687,0.00018793,2]
[421321501,1777432243071,-475.878588,0.00018793,2]
[421321502,1777432243088,-233.504687,0.00018793,2]
[421321503,1777432243106,-151.0,0.00018793,2]
[421321504,1777432243123,-151.0,0.00018793,2]
[421321505,1777432243140,-151.880939,0.00018793,2]
[421321506,1777432243156,-151.0,0.00018793,2]
[421321507,1777432243173,-804.177038,0.00018793,2]
[421321508,1777432243191,-804.177038,0.00018793,2]
[421321509,1777432243206,-804.177038,0.00018793,2]